[Event "Slovakia Open 2022"]
[Site "Bratislava"]
[Date "2022.10.01"]
[Round "4.3"]
[White "Kukelko, Alexey"]
[Black "Heberla, Bartlomiej"]
[Result "0-1"]
[ECO "C55"]
[WhiteElo "2280"]
[BlackElo "2568"]
[Annotator "TA"]
[PlyCount "130"]
[EventDate "2022.09.30"]
[EventCountry "SVK"]
[SourceTitle "playchess.com"]
[Source "ChessBase"]
[SourceQuality "1"]
[TimeControl "2700+10"]

{[%evp 10,130,47,28,33,29,35,-11,-4,0,18,13,17,-4,9,-50,-35,-34,-35,-55,-33,-26,-45,-138,-112,-130,-98,-102,-102,-90,-31,-35,-20,-30,-29,-40,-16,-31,-16,-137,-172,-272,-262,-272,-259,-248,-268,-262,-222,-228,-212,-274,-285,-283,-247,-331,-310,-354,-341,-318,-327,-380,-388,-363,-357,-436,-337,-500,-496,-559,-538,-509,-505,-531,-525,-509,-495,-686,-665,-678,-660,-639,-631,-720,-710,-690,-675,-1255,-1161,-970,-359,-352,-343,-459,-259,-252,-215,-208,-162,-506,-609,-669,-633,-623,-592,-549,-535,-1341,-1283,-1004,-962,-1513,-1444,-2859,-2741,-3482,-12839,-29982,-29983,-29983,-29984,-29982,-29983]} 1. e4 {[%emt 0:00:11]} e5 {[%emt 0:00:03]} 2. Nf3 {[%emt 0:00:30]} Nc6 {[%emt 0:00:02]} 3. Bc4 {[%emt 0:01:27]} Nf6 {[%emt 0:00:02]} 4. d3 {[%emt 0:00:21]} h6 {[%emt 0:00:04]} 5. c3 {[%emt 0:00:57]} d6 {[%emt 0:00:06]} 6. b4 {[%emt 0:00:07]} g5 {[%emt 0:01:34][%cal Bg7g5,Bg5g4][%mdl 32] C55: Two Knights: 4 d3, 4 d4 exd4 5 e5 and Max Lange Attack.} 7. Qb3 {[%emt 0:01:43]} Qe7 {[%emt 0:00:04]} 8. Nbd2 {[%emt 0:01:37]} (8. O-O $14) 8... Bg7 {[%emt 0:00:10] The position is equal.} 9. Nf1 {[%emt 0:00:20]} Be6 {[%emt 0:04:35] [#]} 10. Ne3 $146 {[%emt 0:04:13]} ({Predecessor:} 10. Ng3 a5 11. a3 axb4 12. cxb4 g4 13. Nh4 Nd4 14. Qd1 Nxe4 15. Bxe6 fxe6 16. dxe4 Qxh4 {1-0 (54) Nord,M (2066)-Thybo,T (2136) Svendborg 2019}) 10... Qd7 {[%emt 0:00:46]} 11. h4 {[%emt 0:03:44]} g4 {[%emt 0:00:28]} 12. Nh2 {[%emt 0:00:10]} (12. Nd2 $11) 12... Bxc4 $15 {[%emt 0:02:45]} 13. Qxc4 {[%emt 0:01:32]} Ne7 {[%emt 0:00:02]} 14. Bd2 {[%emt 0:01:32]} d5 {[%emt 0:07:24]} 15. exd5 {[%emt 0:02:08][%cal Rh2g4]} h5 {[%emt 0:01:46]} 16. d4 {[%emt 0:05:03]} ({White should play} 16. f3 $15) 16... Nfxd5 {[%emt 0:04:30]} 17. dxe5 {[%emt 0:01:10]} Nxe3 {[%emt 0:00:04]} 18. Bxe3 {[%emt 0:00:06]} Bxe5 {[%emt 0:00:08]} 19. Rd1 {[%emt 0:00:52] Prevents Qd5.} Qc6 {[%emt 0:00:06]} ({Black should try} 19... Qe6 $17 20. Qd3 Bxh2 21. Rxh2 O-O) 20. Qxc6+ {[%emt 0:00:27]} Nxc6 {[%emt 0:00:02]} 21. Rd3 {[%emt 0:04:38]} O-O {[%emt 0:03:17]} 22. Nf1 {[%emt 0:01:23]} Rfe8 {[%emt 0:10:06]} (22... Rfd8 $5 {[%cal Rd8d3]} 23. Kd2 b5 $11) 23. Kd1 {[%emt 0:01:33]} b5 {[%emt 0:02:51]} 24. Nd2 {[%emt 0:01:18] Black converts the advantage convincingly.} (24. f4 $1 $11 {remains equal.} Bd6 25. Ng3) 24... a5 $36 {[%emt 0:00:02][%mdl 2048] Black is on the roll.} 25. a3 {[%emt 0:00:00]} (25. bxa5 $142 Rxa5 26. Ke2) 25... axb4 $19 {[%emt 0:00:29]} 26. cxb4 {[%emt 0:00:03] [#]} Nxb4 $1 {[%emt 0:00:13][%mdl 512]} 27. Rb3 {[%emt 0:00:11]} Nd5 {[%emt 0:00:13][%cal Ob5b4]} 28. Re1 {[%emt 0:00:57]} Bd6 {[%emt 0:02:25]} 29. Nb1 {[%emt 0:03:57]} c6 {[%emt 0:00:01]} 30. Bd2 {[%emt 0:00:15]} Rxe1+ {[%emt 0:00:39]} 31. Kxe1 {[%emt 0:00:31]} Ra4 {[%emt 0:00:05]} 32. g3 {[%emt 0:00:44]} f5 {[%emt 0:00:02]} 33. Bc1 {[%emt 0:01:17]} Re4+ {[%emt 0:00:26]} 34. Kd1 {[%emt 0:00:21]} Bc5 {[%emt 0:00:23]} 35. Rb2 {[%emt 0:02:40]} Rc4 {[%emt 0:00:23]} 36. Re2 {[%emt 0:00:41]} Kf7 {[%emt 0:00:14]} 37. Bb2 {[%emt 0:00:26]} Bd6 {[%emt 0:01:35]} 38. Rd2 {[%emt 0:01:26]} (38. Nd2 $142 Ra4 39. Kc1) 38... f4 {[%emt 0:00:15]} 39. Rd3 {[%emt 0:00:02]} fxg3 {[%emt 0:00:20]} 40. fxg3 {[%emt 0:00:10]} Re4 {[%emt 0:00:03]} 41. Bc1 {[%emt 0:00:34]} Ke6 {[%emt 0:00:07]} 42. Bg5 {[%emt 0:00:26]} Ra4 {[%emt 0:00:21]} 43. Kc2 {[%emt 0:00:23]} c5 {[%emt 0:00:22][%cal Bc6c5,Bc5c4,Bc4c3,Bc3c2][%mdl 32]} 44. Rb3 {[%emt 0:00:11]} Rc4+ {[%emt 0:00:04]} 45. Kd3 {[%emt 0:00:07]} Rd4+ {[%emt 0:00:21]} 46. Ke2 {[%emt 0:00:10]} c4 {[%emt 0:01:57]} 47. Rxb5 {[%emt 0:00:00]} c3 {[%emt 0:00:01] Strongly threatening ...c2.} 48. Rb3 {[%emt 0:00:23]} c2 {[%emt 0:00:27]} 49. Nc3 {[%emt 0:00:02] [#]} Be5 $2 {[%emt 0:00:44]} (49... Bf4 $1 {[%mdl 512]} 50. Na2 Rd2+ 51. Kf1 Rd1+ 52. Ke2 Bxg5 53. hxg5 Ra1) 50. Na2 {[%emt 0:00:19]} Rd1 {[%emt 0:00:05]} 51. Bc1 {[%emt 0:00:09]} Nc3+ {[%emt 0:00:09]} 52. Nxc3 {[%emt 0:00:08]} Rxc1 {[%emt 0:00:01][%mdl 4096] Endgame KRB-KRN} 53. Kd2 {[%emt 0:00:05] Against Re1} Rg1 {[%emt 0:00:10]} 54. Kxc2 {[%emt 0:00:08]} (54. Ne2 {nothing else works.} Rg2 55. Re3) 54... Rg2+ {[%emt 0:00:01]} 55. Kd1 {[%emt 0:00:10]} Rxg3 {[%emt 0:00:02]} 56. Rb6+ {[%emt 0:00:10]} Kf5 {[%emt 0:00:01]} 57. Ne2 {[%emt 0:00:11]} Rh3 {[%emt 0:00:21]} 58. a4 {[%emt 0:00:17]} Rxh4 {[%emt 0:00:01] aiming for ...Rh1+.} 59. a5 {[%emt 0:00:01]} Rh1+ {[%emt 0:00:02]} 60. Kd2 {[%emt 0:00:04]} Ra1 {[%emt 0:00:01] ...h4 is the strong threat.} 61. a6 {[%emt 0:00:01]} h4 {[%emt 0:00:07][%cal Bh5h4,Bh4h3,Bh3h2][%mdl 32]} 62. Ke3 {[%emt 0:00:19]} h3 {[%emt 0:00:13] ( -> ...h2)} 63. Rb5 {[%emt 0:00:27]} h2 {[%emt 0:00:43] Black mates.} 64. Ng3+ {[%emt 0:00:08]} Ke6 {[%emt 0:00:02]} 65. Rb6+ {[%emt 0:00:03]} Kd7 {[%emt 0:00:12] Weighted Error Value: White=0.89/Black=0.21 (precise)} 0-1

[Event "Slovakia Open 2022"]
[Site "Bratislava"]
[Date "2022.10.01"]
[Round "4.4"]
[White "Laurusas, Tomas"]
[Black "Mikrut, Dariusz"]
[Result "1/2-1/2"]
[ECO "E92"]
[WhiteElo "2563"]
[BlackElo "2316"]
[Annotator "TA"]
[PlyCount "96"]
[EventDate "2022.09.30"]
[EventCountry "SVK"]
[SourceTitle "playchess.com"]
[Source "ChessBase"]
[SourceQuality "1"]
[TimeControl "2700+10"]

{[%evp 18,96,16,0,0,0,0,0,0,0,0,0,-9,0,75,67,73,56,59,26,57,65,65,38,33,23,50,37,39,33,62,65,84,62,66,66,139,138,136,139,142,140,291,310,297,114,248,167,147,134,269,254,258,242,220,35,36,36,36,0,-10,-11,836,0,96,0,0,-130,85,-54,-29,-25,44,0,12836,0,0,0,104,0,80]} 1. d4 {[%emt 0:00:10]} Nf6 {[%emt 0:00:04]} 2. c4 {[%emt 0:00:01]} g6 {[%emt 0:00:05]} 3. Nc3 {[%emt 0:01:02]} Bg7 {[%emt 0:00:02]} 4. e4 {[%emt 0:00:02]} d6 {[%emt 0:00:01]} 5. Be2 {[%emt 0:00:01]} O-O {[%emt 0:00:03]} 6. Nf3 {[%emt 0:00:12]} e5 {[%emt 0:00:15]} 7. Be3 {[%emt 0:00:02]} Ng4 {[%emt 0:01:30]} 8. Bg5 {[%emt 0:00:16]} f6 {[%emt 0:00:47]} 9. Bc1 {[%emt 0:00:02]} Nc6 {[%emt 0:02:00] 9...exd4 is vanishing.} 10. h3 {[%emt 0:03:59] 10.0-0 is the modern continuation.} exd4 {[%emt 0:01:14] E92: King's Indian: Classical: 6 Be2 e5: 7 dxe5, 7 Be3 and Petrosian System without 7...Nbd7.} 11. Nxd4 {[%emt 0:00:02]} Nxd4 {[%emt 0:01:48]} 12. Qxd4 {[%emt 0:00:41]} Ne5 {[%emt 0:00:30]} 13. Be3 {[%emt 0:05:47]} f5 {[%emt 0:00:22][%cal Oe5f3] ...Nf3+! is the strong threat.} 14. Qd2 {[%emt 0:00:38]} Be6 {[%emt 0:02:55]} 15. exf5 {[%emt 0:00:23]} Rxf5 {[%emt 0:00:22]} (15... Bxc4 $2 16. Bxc4+ Nxc4 17. Qd5+ Kh8 18. Qxc4 $18) (15... gxf5 $11 {keeps the balance.} 16. b3 Qf6) 16. b3 $16 {[%emt 0:00:41] [#]} Qh4 $146 {[%emt 0:05:45]} ({Predecessor:} 16... Qf6 17. Rc1 Rf8 18. Rf1 Nc6 19. Nb5 Qe7 20. Kd1 a6 21. Nc3 Qf7 22. Nd5 Bxd5 23. cxd5 {½-½ (32) Rocha,J (2196)-Bonfim,H (1932) Vitoria 2013}) 17. Rc1 {[%emt 0:03:32]} Raf8 {[%emt 0:00:18][%cal Rf5f2]} 18. g3 {[%emt 0:00:07]} (18. O-O {is more complex.} g5 19. Nd5 R8f7 20. f3) 18... Qd8 {[%emt 0:03:00]} 19. f4 {[%emt 0:00:21]} Nc6 {[%emt 0:01:03]} 20. O-O {[%emt 0:13:15]} (20. Bg4 {feels hotter.} h5 21. Bxf5 Bxf5 22. O-O) 20... R5f7 {[%emt 0:05:05]} 21. h4 {[%emt 0:01:44]} Re8 {[%emt 0:00:10]} 22. Bf2 {[%emt 0:00:16]} Qd7 {[%emt 0:09:04]} 23. Bf3 {[%emt 0:01:29]} Bxc3 {[%emt 0:00:10]} 24. Qxc3 {[%emt 0:01:03]} h5 {[%emt 0:01:41]} 25. Rfe1 {[%emt 0:01:01]} Kh7 {[%emt 0:00:43]} 26. b4 {[%emt 0:02:29]} a6 {[%emt 0:00:55]} (26... b6 $14) 27. b5 {[%emt 0:01:45]} axb5 {[%emt 0:04:35]} 28. cxb5 {[%emt 0:00:00]} Nd8 {[%emt 0:00:10]} 29. a4 {[%emt 0:00:03] White has more active pieces.} Bf5 $2 {[%emt 0:00:10]} (29... c6 $16 30. bxc6 Nxc6 31. Bxc6 bxc6) 30. Rxe8 $18 {[%emt 0:00:56]} Qxe8 {[%emt 0:02:18]} 31. Bd5 $2 {[%emt 0:04:12] A strong pair of Bishops.} (31. Re1 $1 $18 {[%cal Re1e8] and the rest is easy.} Qd7 32. Qe3) 31... Be6 {[%emt 0:00:10]} (31... Re7 $16 {keeps fighting.} 32. Bg2 Bg4) 32. Bg2 {[%emt 0:00:10]} Qd7 {[%emt 0:01:19]} 33. Qb4 {[%emt 0:01:40]} Rf5 {[%emt 0:00:21]} (33... Bg4 $16 34. Qc4 Re7) 34. Bd4 {[%emt 0:00:45]} c5 {[%emt 0:00:10]} 35. bxc6 $1 {[%emt 0:00:02]} Nxc6 {[%emt 0:00:01] [#]} 36. Bxc6 {[%emt 0:00:11]} ({White must play} 36. Qb6 $1 $18) 36... bxc6 $14 {[%emt 0:00:01]} 37. Qb8 {[%emt 0:00:02][%csl Gd4][%cal Rb8h8]} Bg8 {[%emt 0:00:07][%cal Of5f4]} 38. Re1 {[%emt 0:02:07]} (38. Ba1 $14 {is superior.} Rxf4 39. Rb1 (39. gxf4 Qg4+ 40. Kf2 Qxf4+ 41. Ke2 Qg4+ 42. Ke3 Qg3+ 43. Ke2 Qg4+ 44. Kf2 Qf4+ 45. Ke2 Qg4+ $11) 39... Rxa4 40. Rb7 Rxa1+ 41. Kf2 Qf7+ 42. Rxf7+ Bxf7 43. Qb7 (43. Qxd6 Bd5 $14) 43... Ra2+ 44. Ke3 Ra3+ 45. Kf4 Ra4+ 46. Kf3 Ra3+ 47. Kg2) 38... Rxf4 $1 $11 {[%emt 0:01:38]} 39. Bf2 {[%emt 0:00:19]} (39. gxf4 $2 {loses.} Qg4+ 40. Kf2 Qxf4+ 41. Ke2 Bc4+ 42. Kd1 Qxd4+ 43. Kc2 Qd3+ 44. Kc1 Qc3+ 45. Kd1 Bb3+ 46. Ke2 Bc4+ 47. Kd1 Qf3+ 48. Kd2 Qd3+ 49. Kc1 Qc3+ 50. Kd1 $19) 39... c5 $2 {[%emt 0:00:31][%mdl 8192]} 40. a5 $2 {[%emt 0:00:00]} (40. gxf4 $18 Qg4+ 41. Kh2) 40... Rb4 {[%emt 0:00:15] [#]} (40... Bd5 $11 41. Re8 Rf3) 41. Qa8 {[%emt 0:00:07]} (41. Qf8 $1 $16 {Threatens to win with Re7+.} Rb7 42. a6) 41... Rb7 {[%emt 0:00:10]} 42. Qa6 {[%emt 0:00:10]} (42. Qf8 $11) 42... Qf7 $2 {[%emt 0:00:10]} (42... Bd5 $17 {and life is bright. Strongly threatening ...c4.} 43. Qd3 Bc6) 43. Re8 {[%emt 0:00:10]} Ra7 {[%emt 0:00:10]} 44. Qe2 {[%emt 0:00:10]} Kh8 {[%emt 0:00:10]} (44... Rxa5 $2 45. Re7 Ra7 46. Rxf7+ Rxf7 47. Qa6 $18) (44... Qf6 $11 45. Be1 Bf7) 45. a6 {[%emt 0:00:10][%mdl 1024] White has compensation.} d5 $2 {[%emt 0:00:02][%mdl 8192]} (45... Kh7 $11) 46. Be1 $2 {[%emt 0:00:04]} (46. Bxc5 $18 Rc7 47. Bd4+ Kh7 48. Qe3 (48. Qe5 Rc1+ 49. Kh2 Rc2+ 50. Kg1 Rc1+ 51. Kh2 Rc2+ 52. Kg1 Rc1+ $11) 48... Qd7 49. a7 Rxa7 50. Bxa7 Qf5 51. Rb8) 46... d4 {[%emt 0:00:11]} 47. Qe5+ {[%emt 0:00:27]} Kh7 {[%emt 0:00:02]} (47... Qg7 $11 {remains equal.}) 48. Bd2 {[%emt 0:00:12]} (48. Qxc5 $16 Rc7 49. Qd6 (49. Qe5 Qg7 $16)) 48... Qf5 {[%emt 0:00:37] Weighted Error Value: White=0.58/Black=0.44} (48... Qg7 $11) 1/2-1/2

[Event "Slovakia Open 2022"]
[Site "Bratislava"]
[Date "2022.10.01"]
[Round "4.5"]
[White "Kraus, Tomas"]
[Black "Nestorenko, Dmitry"]
[Result "1-0"]
[ECO "C01"]
[WhiteElo "2479"]
[BlackElo "2168"]
[Annotator "TA"]
[PlyCount "165"]
[EventDate "2022.09.30"]
[EventCountry "SVK"]
[SourceTitle "playchess.com"]
[Source "ChessBase"]
[SourceQuality "1"]
[TimeControl "2700+10"]

{[%evp 9,165,43,50,47,62,65,64,62,62,64,58,45,66,55,62,7,6,7,5,9,9,9,22,9,1,6,34,0,0,-13,-20,-16,-16,-10,0,-1,0,0,0,0,3,12,6,11,34,0,86,93,91,93,243,237,319,160,191,57,57,41,50,36,52,25,72,86,76,34,34,28,64,18,18,0,0,0,0,3,39,0,0,0,0,0,0,0,0,3,17,0,17,0,0,0,0,0,17,0,17,6,6,0,17,17,17,10,17,9,10,0,17,17,17,17,17,17,17,17,17,0,905,80,80,80,80,80,80,80,80,65,80,0,80,0,80,65,65,65,65,65,206,206,837,392,2441,1592,9732,9862,9829,9781,10687,10693,7395,7404,12066,5431,6544,6544,3118,1989]} 1. d4 {[%emt 0:04:30]} e6 {[%emt 0:00:13]} 2. e4 {[%emt 0:00:18]} d5 {[%emt 0:00:02]} 3. Bd3 {[%emt 0:01:08]} c5 {[%emt 0:01:42]} 4. exd5 {[%emt 0:00:02]} Qxd5 {[%emt 0:00:08]} 5. Nc3 {[%emt 0:00:04]} Qd8 {[%emt 0:00:39]} 6. Nf3 {[%emt 0:02:20][%cal Od4d5] C01: French: Exchange Variation.} Nc6 {[%emt 0:00:07]} 7. dxc5 {[%emt 0:04:02]} Bxc5 {[%emt 0:00:05]} 8. a3 {[%emt 0:00:08] White is slightly better.} Nf6 {[%emt 0:04:10]} 9. O-O {[%emt 0:00:19]} O-O {[%emt 0:02:59] [#]} 10. Qe2 $146 {[%emt 0:03:08]} ({Predecessor:} 10. b4 Bd6 11. Bb2 Ne5 12. Nxe5 Bxe5 13. Qe2 Qc7 14. Nb5 Bxh2+ 15. Kh1 Qf4 16. Bxf6 gxf6 {1-0 (48) Ibarra Jerez,J (2563)-Shetty,A (2366) Chess.com INT 2016}) 10... h6 {[%emt 0:00:48]} 11. Rd1 {[%emt 0:03:19][%cal Od3h7]} Qe7 {[%emt 0:00:52]} 12. b4 {[%emt 0:07:37]} (12. Ne4 $14) 12... Nd4 $11 {[%emt 0:01:29]} 13. Nxd4 {[%emt 0:00:01]} Bxd4 {[%emt 0:00:02] [#]} 14. Bh7+ $1 {[%emt 0:00:47]} Kxh7 {[%emt 0:00:18]} 15. Rxd4 {[%emt 0:00:01]} e5 {[%emt 0:01:26] Against Bf4} 16. Bb2 {[%emt 0:01:46]} (16. Nb5 {keeps more tension.} a6 17. Nd6 Bg4 18. Rxg4 Qxd6 19. Rg3) 16... Re8 {[%emt 0:00:30]} 17. Rd2 {[%emt 0:02:16]} Bf5 {[%emt 0:03:14]} 18. Rad1 {[%emt 0:00:20]} (18. Nb5 {seems wilder.} Ne4 19. Rd5 a6 20. Rxe5 Qg5 21. Nd4) 18... a6 {[%emt 0:02:10]} 19. Nd5 {[%emt 0:03:58]} Nxd5 {[%emt 0:00:08]} 20. Rxd5 {[%emt 0:00:01]} f6 {[%emt 0:00:17]} 21. c4 {[%emt 0:01:01]} Be6 {[%emt 0:03:49]} 22. Rd6 {[%emt 0:00:45]} Kh8 {[%emt 0:02:32]} (22... Qf7 {looks sharper.} 23. c5 Bb3 24. R1d2 Ba4) 23. Qd3 {[%emt 0:01:33]} Bg4 {[%emt 0:05:09]} 24. Rd2 {[%emt 0:01:08]} Rac8 {[%emt 0:02:02]} 25. c5 {[%emt 0:00:55]} Be6 {[%emt 0:01:51]} 26. h3 {[%emt 0:00:31]} Rc7 {[%emt 0:00:18]} 27. Kh2 {[%emt 0:02:05][%cal Of2f4]} (27. f4 $5) 27... Rec8 {[%emt 0:00:46]} (27... Qf7 $11 {keeps the balance.}) 28. f4 $1 $16 {[%emt 0:01:06]} e4 {[%emt 0:02:23]} (28... exf4 $2 29. Re2 Bf5 30. Rxe7 $18) 29. Qxe4 {[%emt 0:00:15]} Bb3 {[%emt 0:00:33]} (29... Re8 $16 30. f5 Bb3) 30. Qf5 $18 {[%emt 0:01:01][%cal Rd6f6] Strongly threatening Rxf6!} Kg8 {[%emt 0:01:41] [#]} 31. Qg6 {[%emt 0:02:16]} (31. Bxf6 $1 $18 {[%mdl 512]} Rf8 32. Qd3 Rxf6 33. Qxb3+ Qf7 34. Qd3 Rxd6 35. cxd6) 31... Rf8 {[%emt 0:02:19]} 32. Qd3 {[%emt 0:00:54]} (32. Qg4 $1 $18 {Threatens to win with Re2.} Rf7 33. Rd8+ Rf8 34. R8d7 Rxd7 35. Rxd7) 32... Ba4 $14 {[%emt 0:00:32]} 33. Re2 {[%emt 0:00:22]} Qf7 {[%emt 0:00:06]} 34. Re3 {[%emt 0:00:18][%cal Od6f6] Rxf6! is the strong threat.} Bb5 {[%emt 0:00:12]} 35. Qd4 {[%emt 0:00:09]} Qc4 {[%emt 0:00:09]} (35... Re7 $11) 36. Qxc4+ $16 {[%emt 0:00:18]} Bxc4 {[%emt 0:00:01]} 37. Kg3 {[%emt 0:00:18]} Bb5 {[%emt 0:00:33]} 38. f5 {[%emt 0:00:07]} Kf7 {[%emt 0:00:05]} 39. Kf4 {[%emt 0:00:05] White is much more active.} (39. Kh4 $14 {is more appropriate.}) 39... Re8 $11 {[%emt 0:00:27]} 40. Rxe8 {[%emt 0:00:23]} Bxe8 {[%emt 0:00:17][%mdl 4096] Endgame KRB-KRB} 41. g4 {[%emt 0:00:12]} Re7 {[%emt 0:00:09]} 42. Rd3 {[%emt 0:00:09]} Bc6 {[%emt 0:00:24]} 43. Re3 {[%emt 0:00:11]} Rd7 $1 {[%emt 0:00:07]} 44. h4 {[%emt 0:00:08]} Rd2 {[%emt 0:00:13]} 45. Bc3 {[%emt 0:00:01]} Rc2 {[%emt 0:00:50]} 46. Kg3 {[%emt 0:00:16]} Ra2 {[%emt 0:00:24]} 47. Be1 {[%emt 0:00:02]} Rc2 {[%emt 0:00:12]} 48. Bf2 {[%emt 0:00:09]} Rc4 {[%emt 0:00:24]} 49. Kh3 {[%emt 0:00:11]} Rc2 {[%emt 0:00:17]} 50. Be1 {[%emt 0:00:07]} Bg2+ {[%emt 0:00:09]} 51. Kg3 {[%emt 0:00:02]} Bc6 {[%emt 0:00:02]} 52. Bf2 {[%emt 0:00:12]} Rc4 {[%emt 0:00:02]} 53. Rd3 {[%emt 0:00:04]} Bb5 {[%emt 0:00:35]} 54. Re3 {[%emt 0:00:08]} Bc6 {[%emt 0:00:02]} 55. h5 {[%emt 0:00:34]} Rc2 {[%emt 0:00:24]} 56. Rb3 {[%emt 0:00:13]} Ba4 {[%emt 0:00:14]} 57. Rd3 {[%emt 0:00:01]} Bb5 {[%emt 0:00:05]} 58. Re3 {[%emt 0:00:03]} Bc6 {[%emt 0:00:02]} 59. Be1 {[%emt 0:00:06]} Ra2 {[%emt 0:00:27]} 60. Kh3 {[%emt 0:00:07]} Bg2+ {[%emt 0:00:05]} 61. Kh4 {[%emt 0:00:02]} Bc6 {[%emt 0:00:04]} 62. Bg3 {[%emt 0:00:05]} Bb5 {[%emt 0:00:32]} 63. a4 {[%emt 0:00:41]} Re2 $2 {[%emt 0:00:37][%mdl 8192] [#]} (63... Rxa4 $11 64. Be1 (64. Bd6 Bc6 $11) 64... Ra1) 64. Rxe2 $2 {[%emt 0:00:02]} (64. axb5 $1 $18 {and White stays clearly on top.} Rxe3 65. c6 bxc6 66. b6) 64... Bxe2 $18 {[%emt 0:00:01] KB-KB} 65. Bd6 {[%emt 0:00:20]} Ke8 {[%emt 0:02:15]} 66. Kg3 {[%emt 0:00:01]} Kf7 {[%emt 0:00:16]} 67. Kf4 {[%emt 0:00:01]} Ke8 {[%emt 0:00:03]} 68. Bc7 {[%emt 0:00:01]} Kd7 {[%emt 0:00:02]} 69. Bd6 {[%emt 0:00:05] Black must now prevent Bf8.} Ke8 $1 {[%emt 0:00:01] Prevents Bf8.} 70. Kg3 {[%emt 0:00:12]} Kf7 $1 {[%emt 0:00:04]} 71. Bf4 {[%emt 0:00:01]} Ke8 {[%emt 0:00:27]} 72. Bd2 {[%emt 0:00:02]} Kd7 {[%emt 0:00:08]} 73. Bc3 {[%emt 0:00:09]} Bd1 {[%emt 0:00:17]} (73... Kc6 $14) 74. b5 $1 {[%emt 0:00:14][%cal Bb4b5,Bb5a6,Ba6a7][%mdl 32]} Bxa4 $2 {[%emt 0:00:19] [#]} (74... axb5 75. axb5 Be2) 75. c6+ $1 {[%emt 0:00:23]} bxc6 $2 {[%emt 0:00:12]} (75... Kc7 76. cxb7 axb5) 76. bxa6 {[%emt 0:00:04] a7 would kill now. White is clearly winning.} c5 {[%emt 0:00:04]} 77. a7 {[%emt 0:00:41]} Bc6 {[%emt 0:00:04] [#]} 78. g5 $1 {[%emt 0:00:07]} Ke7 {[%emt 0:00:19]} 79. g6 {[%emt 0:00:22]} Bd5 {[%emt 0:00:11]} 80. Kf4 {[%emt 0:00:08]} Kf8 {[%emt 0:00:12]} 81. Bb2 {[%emt 0:00:12]} Ke8 {[%emt 0:00:04]} 82. Ba3 {[%emt 0:00:13]} c4 {[%emt 0:00:02]} 83. Bb4 {[%emt 0:00:01] Weighted Error Value: White=0.16 (very precise) /Black=0.13 (very precise)} 1-0

[Event "Slovakia Open 2022"]
[Site "Bratislava"]
[Date "2022.10.01"]
[Round "4.6"]
[White "Babula, Vlastimil"]
[Black "Rakhmangulova, Anastasiya"]
[Result "1-0"]
[ECO "B87"]
[WhiteElo "2574"]
[BlackElo "2244"]
[Annotator "TA"]
[PlyCount "35"]
[EventDate "2022.09.30"]
[EventCountry "SVK"]
[SourceTitle "playchess.com"]
[Source "ChessBase"]
[SourceQuality "1"]
[TimeControl "2700+10"]

{[%evp 18,35,6,23,143,130,132,132,129,140,203,209,208,53,326,351,823,839,921,895]} 1. e4 {[%emt 0:00:05]} c5 {[%emt 0:00:01]} 2. Nf3 {[%emt 0:00:02]} d6 {[%emt 0:00:01]} 3. d4 {[%emt 0:00:01]} cxd4 {[%emt 0:00:01]} 4. Nxd4 {[%emt 0:00:02]} Nf6 {[%emt 0:00:10]} 5. Nc3 {[%emt 0:00:01]} a6 {[%emt 0:00:01]} 6. Bc4 {[%emt 0:00:04]} e6 {[%emt 0:00:00]} 7. Bb3 {[%emt 0:00:01]} b5 {[%emt 0:00:00]} 8. O-O {[%emt 0:00:16]} Be7 {[%emt 0:00:22]} 9. Qf3 {[%emt 0:01:40]} Qc7 {[%emt 0:00:29]} 10. Qg3 {[%emt 0:01:09]} Bb7 {[%emt 0:04:55] [#] B87: Sicilian Scheveningen/Najdorf: 6 Bc4, with early ...b5.} (10... O-O $11) 11. Bxe6 $1 $16 {[%emt 0:03:02][%mdl 512] White is more active.} fxe6 {[%emt 0:00:27]} 12. Nxe6 {[%emt 0:00:04][%cal Bd4e6,Be6g7,Bg7f5][%mdl 32]} Qd7 {[%emt 0:06:35] White is clearly better.} 13. Nxg7+ {[%emt 0:00:41] [#]} ({Avoid the trap} 13. Qxg7 $2 Rg8 14. Qh6 Qxe6 $19) 13... Kf7 $146 {[%emt 0:00:25]} (13... Kf8 $16) ({Predecessor:} 13... Kd8 14. Nf5 Rg8 15. Qf3 Nc6 16. Bf4 b4 17. Na4 Na5 18. Nb6 Qxf5 19. exf5 Bxf3 {½-½ (80) Mussanti,D (2327)-Shen,A ICC INT 2009}) 14. Nf5 $18 {[%emt 0:00:47]} Bf8 {[%emt 0:00:08] Prevents Qg7+.} 15. Qf3 {[%emt 0:12:20] Chess con chili.} (15. f3 $18) 15... Nc6 $2 {[%emt 0:02:53][%mdl 8192]} (15... Qe6 $1 $14) 16. Bg5 {[%emt 0:01:10] Hoping for Bxf6.} Qe6 {[%emt 0:04:06]} (16... Ne5 17. Nh6+ Ke8 18. Qxf6 Bg7) 17. Bxf6 {[%emt 0:04:34][%mdl 64] Strongly threatening Nd5. Remove Defender, Deflection} ({And not} 17. Nd5 Ne5 18. Qf4 Bxd5 19. exd5 Nxd5 $11) 17... Qxf6 {[%emt 0:00:12]} 18. Nd5 {[%emt 0:00:01][%mdl 64] Deflection.  Weighted Error Value: White=0.21 (precise) /Black=1.00} 1-0